[Event "Turkish Cup 2024"]
[Site "Denizli"]
[Date "2024.08.02"]
[Round "6"]
[White "Bilir, Ibrahim"]
[Black "Hatirli, Ugur Can"]
[Result "0-1"]
[ECO "B43"]
[WhiteElo "1830"]
[BlackElo "1948"]
[Annotator "ChessBase"]
[PlyCount "84"]
[EventDate "2024.08.01"]
[EventType "swiss"]
[EventCountry "TUR"]
[SourceTitle "playchess.com"]
[Source "ChessBase"]
[SourceQuality "1"]
[TimeControl "5400+30"]

1. e4 {[%emt 0:01:00]} c5 {[%emt 0:01:00]} 2. Nf3 {[%emt 0:00:30]} e6 {[%emt 0:00:00]} 3. d4 {[%emt 0:00:30]} cxd4 {[%emt 0:00:00]} 4. Nxd4 {[%emt 0:00:30]} a6 {[%emt 0:00:30]} 5. Nc3 {[%emt 0:00:00]} b5 {[%emt 0:00:30]} 6. g3 {[%emt 0:01:00]} Bb7 {[%emt 0:01:30]} 7. Bg2 {[%emt 0:00:00]} b4 {[%emt 0:03:30]} 8. Na4 {[%emt 0:05:00]} Nf6 {[%emt 0:00:30]} 9. f3 {[%emt 0:01:30]} d5 {[%emt 0:03:30]} 10. e5 {[%emt 0:02:30]} Nfd7 {[%emt 0:00:00]} 11. f4 {[%emt 0:00:30]} Qa5 {[%emt 0:04:00]} 12. c3 {[%emt 0:11:30]} Nc6 {[%emt 0:00:30]} 13. O-O {[%emt 0:00:30]} Nxd4 {[%emt 0:03:30]} 14. cxd4 {[%emt 0:00:30]} Bc6 {[%emt 0:00:00]} 15. b3 {[%emt 0:00:00]} Bxa4 {[%emt 0:00:00]} 16. bxa4 {[%emt 0:00:00]} Nb6 {[%emt 0:00:30]} 17. f5 {[%emt 0:02:30]} exf5 {[%emt 0:07:30]} 18. Qc2 {[%emt 0:04:30]} Be7 {[%emt 0:08:30]} 19. Qc6+ {[%emt 0:00:30]} Kd8 {[%emt 0:00:00]} 20. Qc2 {[%emt 0:09:30]} g6 {[%emt 0:02:00]} 21. g4 {[%emt 0:03:30]} Rc8 {[%emt 0:02:30]} 22. Qd1 {[%emt 0:02:30]} Nxa4 {[%emt 0:04:30]} 23. gxf5 {[%emt 0:04:30]} Nc3 {[%emt 0:00:30]} 24. Qg4 {[%emt 0:03:30]} h5 {[%emt 0:01:30]} 25. Qf3 {[%emt 0:01:30]} Rc6 {[%emt 0:10:30]} 26. f6 {[%emt 0:03:30]} Bf8 {[%emt 0:00:30]} 27. Be3 {[%emt 0:01:30]} g5 {[%emt 0:03:30]} 28. Bxg5 {[%emt 0:01:30]} h4 {[%emt 0:01:30]} 29. Kh1 {[%emt 0:03:30]} h3 {[%emt 0:07:30]} 30. Bxh3 {[%emt 0:01:30]} Ne4 {[%emt 0:01:30]} 31. Rac1 {[%emt 0:02:30]} Rc3 {[%emt 0:08:30]} 32. Rxc3 {[%emt 0:01:30]} bxc3 {[%emt 0:00:00]} 33. e6 {[%emt 0:02:30]} Bd6 {[%emt 0:10:15]} 34. e7+ {[%emt 0:02:30]} Kc7 {[%emt 0:00:01]} 35. Bf4 {[%emt 0:07:30]} Qxa2 {[%emt 0:03:36]} 36. Bxd6+ {[%emt 0:01:30]} Kxd6 {[%emt 0:00:01]} 37. Bg2 {[%emt 0:01:30]} Qd2 {[%emt 0:01:19]} 38. h3 {[%emt 0:05:33]} a5 {[%emt 0:06:28]} 39. Kg1 {[%emt 0:02:52]} Rg8 {[%emt 0:00:16]} 40. Qf4+ {[%emt 0:01:44]} Qxf4 {[%emt 0:00:54]} 41. Rxf4 {[%emt 0:00:30]} c2 {[%emt 0:00:00]} 42. Rf1 {[%emt 0:03:37]} Ng3 {[%emt 0:00:00]} 0-1

[Event "Turkish Cup 2024"]
[Site "Denizli"]
[Date "2024.08.02"]
[Round "6"]
[White "Adiguzel, Hakan"]
[Black "Kocakaplan, Emre"]
[Result "1/2-1/2"]
[ECO "C72"]
[WhiteElo "1821"]
[BlackElo "1926"]
[Annotator "NA"]
[PlyCount "31"]
[EventDate "2024.08.01"]
[EventType "swiss"]
[EventCountry "TUR"]
[SourceTitle "playchess.com"]
[Source "ChessBase"]
[SourceQuality "1"]
[TimeControl "5400+30"]

1. e4 {[%emt 0:04:00]} e5 {[%emt 0:01:00]} 2. Nf3 {[%emt 0:00:30]} Nc6 {[%emt 0:00:30]} 3. Bb5 {[%emt 0:00:00]} a6 {[%emt 0:00:30]} 4. Ba4 {[%emt 0:00:00]} d6 {[%emt 0:00:00]} 5. O-O {[%emt 0:00:30]} Bd7 {[%emt 0:00:00]} 6. d4 {[%emt 0:00:30]} Nxd4 {[%emt 0:05:30]} 7. Bxd7+ {[%emt 0:00:30]} Qxd7 {[%emt 0:00:00]} 8. Nxd4 {[%emt 0:00:00]} exd4 {[%emt 0:00:00]} 9. Qxd4 {[%emt 0:00:00]} Nf6 {[%emt 0:00:30]} 10. Bg5 {[%emt 0:03:30]} Be7 {[%emt 0:01:30]} 11. Nc3 {[%emt 0:00:30]} O-O {[%emt 0:17:30]} 12. e5 {[%emt 0:03:30]} Ne8 {[%emt 0:00:30]} 13. Bxe7 {[%emt 0:00:30]} Qxe7 {[%emt 0:00:30]} 14. Rfe1 {[%emt 0:00:30]} dxe5 {[%emt 0:13:30]} 15. Rxe5 {[%emt 0:03:30]} Qd6 {[%emt 0:00:30]} 16. Rd1 {[%emt 0:04:30]} 1/2-1/2

[Event "Turkish Cup 2024"]
[Site "Denizli"]
[Date "2024.08.02"]
[Round "6"]
[White "Sadik, Muhammed Selim"]
[Black "Zuberoglu, Ibrahim Berk"]
[Result "0-1"]
[ECO "D00"]
[WhiteElo "1798"]
[BlackElo "1870"]
[Annotator "NA"]
[PlyCount "124"]
[EventDate "2024.08.01"]
[EventType "swiss"]
[EventCountry "TUR"]
[SourceTitle "playchess.com"]
[Source "ChessBase"]
[SourceQuality "1"]
[TimeControl "5400+30"]

1. d4 {[%emt 0:10:00]} Nf6 {[%emt 0:01:00]} 2. Nf3 {[%emt 0:00:00]} g6 {[%emt 0:01:30]} 3. Nc3 {[%emt 0:00:00]} d5 {[%emt 0:01:30]} 4. Bf4 {[%emt 0:00:30]} Bg7 {[%emt 0:01:30]} 5. Nb5 {[%emt 0:01:30]} Na6 {[%emt 0:00:00]} 6. e3 {[%emt 0:00:00]} O-O {[%emt 0:02:00]} 7. Nc3 {[%emt 0:00:00]} c5 {[%emt 0:05:30]} 8. Bxa6 {[%emt 0:00:30]} bxa6 {[%emt 0:00:30]} 9. dxc5 {[%emt 0:00:30]} Qa5 {[%emt 0:05:30]} 10. O-O {[%emt 0:00:30]} Qxc5 {[%emt 0:01:30]} 11. Be5 {[%emt 0:00:00]} Rd8 {[%emt 0:04:30]} 12. Qd4 {[%emt 0:00:00]} Qc6 {[%emt 0:05:30]} 13. Qb4 {[%emt 0:05:30]} Qe6 {[%emt 0:12:30]} 14. Ne2 {[%emt 0:03:30]} Bf8 {[%emt 0:12:30]} 15. Rfd1 {[%emt 0:06:30]} Ng4 {[%emt 0:08:30]} 16. Bg3 {[%emt 0:07:30]} Qc6 {[%emt 0:06:30]} 17. h3 {[%emt 0:02:30]} Nh6 {[%emt 0:05:30]} 18. Ned4 {[%emt 0:02:30]} Qb6 {[%emt 0:04:04]} 19. Qxb6 {[%emt 0:01:30]} axb6 {[%emt 0:00:02]} 20. Bc7 {[%emt 0:00:30]} Rd7 {[%emt 0:00:38]} 21. Bxb6 {[%emt 0:07:30]} Rb8 {[%emt 0:00:31]} 22. Bc5 {[%emt 0:00:30]} Rxb2 {[%emt 0:00:45]} 23. Rdb1 {[%emt 0:17:30]} Rdb7 {[%emt 0:02:04]} 24. Rxb2 {[%emt 0:03:30]} Rxb2 {[%emt 0:00:07]} 25. Ba3 {[%emt 0:02:30]} Rb7 {[%emt 0:01:18]} 26. Rc1 {[%emt 0:05:30]} Rc7 {[%emt 0:01:43]} 27. Bb4 {[%emt 0:14:38]} Nf5 {[%emt 0:00:51]} 28. Nb3 {[%emt 0:01:42]} h5 {[%emt 0:04:37]} 29. Nfd2 {[%emt 0:02:09]} e5 {[%emt 0:06:37]} 30. Ba5 {[%emt 0:00:40]} Rc6 {[%emt 0:00:10]} 31. c4 {[%emt 0:02:15]} Ba3 {[%emt 0:00:05]} 32. Rc2 {[%emt 0:00:11]} Nd6 {[%emt 0:03:03]} 33. c5 {[%emt 0:00:23]} Bf5 {[%emt 0:01:07]} 34. e4 {[%emt 0:02:22]} Nxe4 {[%emt 0:00:27]} 35. Nxe4 {[%emt 0:01:25]} Bxe4 {[%emt 0:00:08]} 36. Rd2 {[%emt 0:00:44]} Bxc5 {[%emt 0:01:32]} 37. Nxc5 {[%emt 0:01:26]} Rxc5 {[%emt 0:00:30]} 38. Bb4 {[%emt 0:00:30]} Rb5 {[%emt 0:00:30]} 39. Bd6 {[%emt 0:00:30]} d4 {[%emt 0:00:30]} 40. f4 {[%emt 0:00:30]} f6 {[%emt 0:00:30]} 41. fxe5 {[%emt 0:00:30]} fxe5 {[%emt 0:00:30]} 42. Re2 {[%emt 0:00:30]} d3 {[%emt 0:00:30]} 43. Rd2 {[%emt 0:00:00]} Kf7 {[%emt 0:00:38]} 44. Kf2 {[%emt 0:00:00]} Ke6 {[%emt 0:00:22]} 45. Bf8 {[%emt 0:00:40]} Kd5 {[%emt 0:01:18]} 46. Ke3 {[%emt 0:00:17]} a5 {[%emt 0:00:41]} 47. a3 {[%emt 0:01:33]} Rb1 {[%emt 0:00:47]} 48. Rf2 {[%emt 0:00:32]} Re1+ {[%emt 0:01:00]} 49. Kd2 {[%emt 0:00:30]} Rg1 {[%emt 0:00:00]} 50. h4 {[%emt 0:00:07]} Kc4 {[%emt 0:01:01]} 51. Bd6 {[%emt 0:00:42]} Kd5 {[%emt 0:00:34]} 52. Bc7 {[%emt 0:00:16]} a4 {[%emt 0:00:27]} 53. Ke3 {[%emt 0:00:30]} Re1+ {[%emt 0:00:30]} 54. Kd2 {[%emt 0:00:30]} Ra1 {[%emt 0:00:30]} 55. Ke3 {[%emt 0:00:30]} Rxa3 {[%emt 0:00:30]} 56. Rf6 {[%emt 0:00:30]} Bf5 {[%emt 0:00:00]} 57. Ra6 {[%emt 0:00:08]} Ra2 {[%emt 0:00:09]} 58. Ra5+ {[%emt 0:00:40]} Kc4 {[%emt 0:00:38]} 59. Bd6 {[%emt 0:00:50]} Re2+ {[%emt 0:00:42]} 60. Kf3 {[%emt 0:00:03]} Bg4+ {[%emt 0:01:01]} 61. Kg3 {[%emt 0:00:06]} d2 {[%emt 0:00:03]} 62. Rxa4+ {[%emt 0:00:57]} Kb3 {[%emt 0:00:07]} 0-1

[Event "Turkish Cup 2024"]
[Site "Denizli"]
[Date "2024.08.02"]
[Round "6"]
[White "Madsman, Berk"]
[Black "Ekinci, Berkay"]
[Result "1/2-1/2"]
[ECO "B30"]
[WhiteElo "1797"]
[BlackElo "1976"]
[Annotator "ChessBase"]
[PlyCount "91"]
[EventDate "2024.08.01"]
[EventType "swiss"]
[EventCountry "TUR"]
[SourceTitle "playchess.com"]
[Source "ChessBase"]
[SourceQuality "1"]
[TimeControl "5400+30"]

1. e4 {[%emt 0:01:00]} c5 {[%emt 0:01:00]} 2. Nf3 {[%emt 0:00:30]} Nc6 {[%emt 0:00:00]} 3. Bb5 {[%emt 0:00:30]} e6 {[%emt 0:00:00]} 4. O-O {[%emt 0:00:30]} Nge7 {[%emt 0:00:00]} 5. c3 {[%emt 0:01:30]} d5 {[%emt 0:02:00]} 6. exd5 {[%emt 0:01:30]} Qxd5 {[%emt 0:00:30]} 7. d4 {[%emt 0:03:30]} cxd4 {[%emt 0:03:30]} 8. c4 {[%emt 0:03:30]} Qd8 {[%emt 0:08:30]} 9. Nxd4 {[%emt 0:00:00]} Bd7 {[%emt 0:01:30]} 10. Nc3 {[%emt 0:03:00]} Nxd4 {[%emt 0:03:30]} 11. Qxd4 {[%emt 0:00:30]} Bc6 {[%emt 0:05:30]} 12. Be3 {[%emt 0:01:30]} Qxd4 {[%emt 0:07:30]} 13. Bxd4 {[%emt 0:00:30]} Nf5 {[%emt 0:00:30]} 14. Bxc6+ {[%emt 0:05:30]} bxc6 {[%emt 0:00:30]} 15. Ne2 {[%emt 0:02:30]} c5 {[%emt 0:06:30]} 16. Bc3 {[%emt 0:00:30]} O-O-O {[%emt 0:01:30]} 17. Rfd1 {[%emt 0:03:30]} Be7 {[%emt 0:03:30]} 18. b3 {[%emt 0:07:30]} Rhe8 {[%emt 0:10:30]} 19. Kf1 {[%emt 0:05:30]} f6 {[%emt 0:03:30]} 20. g4 {[%emt 0:01:30]} Nh4 {[%emt 0:01:30]} 21. Rxd8+ {[%emt 0:00:30]} Bxd8 {[%emt 0:00:30]} 22. Bd2 {[%emt 0:01:30]} Nf3 {[%emt 0:01:30]} 23. Bf4 {[%emt 0:00:30]} e5 {[%emt 0:06:30]} 24. Bg3 {[%emt 0:01:30]} h5 {[%emt 0:03:30]} 25. gxh5 {[%emt 0:04:30]} f5 {[%emt 0:00:30]} 26. Kg2 {[%emt 0:00:30]} Nd4 {[%emt 0:00:30]} 27. Re1 {[%emt 0:06:30]} Bc7 {[%emt 0:08:30]} 28. f3 {[%emt 0:01:30]} Kd7 {[%emt 0:08:59]} 29. Rd1 {[%emt 0:05:30]} Kc6 {[%emt 0:01:20]} 30. Nc3 {[%emt 0:00:30]} Rh8 {[%emt 0:03:14]} 31. Nd5 {[%emt 0:00:30]} Bd6 {[%emt 0:00:37]} 32. Re1 {[%emt 0:01:30]} Rxh5 {[%emt 0:02:08]} 33. Bxe5 {[%emt 0:01:30]} Bxe5 {[%emt 0:00:36]} 34. Rxe5 {[%emt 0:00:30]} Rxh2+ {[%emt 0:00:30]} 35. Kxh2 {[%emt 0:00:30]} Nxf3+ {[%emt 0:00:30]} 36. Kg3 {[%emt 0:00:30]} Nxe5 {[%emt 0:00:30]} 37. Ne7+ {[%emt 0:00:30]} Kb6 {[%emt 0:00:30]} 38. Nxf5 {[%emt 0:00:00]} Nd3 {[%emt 0:03:18]} 39. Nxg7 {[%emt 0:00:00]} Nc1 {[%emt 0:00:43]} 40. Kf4 {[%emt 0:01:30]} Nxa2 {[%emt 0:00:07]} 41. Ke3 {[%emt 0:00:30]} Nc1 {[%emt 0:00:37]} 42. Ne6 {[%emt 0:00:30]} Nxb3 {[%emt 0:00:41]} 43. Kd3 {[%emt 0:00:00]} a5 {[%emt 0:02:38]} 44. Kc3 {[%emt 0:00:00]} a4 {[%emt 0:00:00]} 45. Kb2 {[%emt 0:00:30]} Nd4 {[%emt 0:00:34]} 46. Nxc5 {[%emt 0:00:30]} 1/2-1/2

[Event "Turkish Cup 2024"]
[Site "Denizli"]
[Date "2024.08.02"]
[Round "6"]
[White "Bozdag, Armagan Emre"]
[Black "Saygin, Nurettin"]
[Result "1-0"]
[ECO "A20"]
[WhiteElo "1794"]
[BlackElo "1937"]
[Annotator "ChessBase"]
[PlyCount "137"]
[EventDate "2024.08.01"]
[EventType "swiss"]
[EventCountry "TUR"]
[SourceTitle "playchess.com"]
[Source "ChessBase"]
[SourceQuality "1"]
[TimeControl "5400+30"]

1. a3 {[%emt 0:08:00]} e5 {[%emt 0:01:00]} 2. c4 {[%emt 0:00:30]} Nf6 {[%emt 0:00:30]} 3. d3 {[%emt 0:00:00]} c5 {[%emt 0:00:30]} 4. Nc3 {[%emt 0:03:00]} d5 {[%emt 0:01:30]} 5. cxd5 {[%emt 0:00:00]} Nxd5 {[%emt 0:00:30]} 6. Nf3 {[%emt 0:00:00]} Nc6 {[%emt 0:00:30]} 7. g3 {[%emt 0:00:30]} Be7 {[%emt 0:01:30]} 8. Nxd5 {[%emt 0:00:30]} Qxd5 {[%emt 0:00:30]} 9. Bg2 {[%emt 0:00:00]} O-O {[%emt 0:02:30]} 10. O-O {[%emt 0:00:00]} Qd6 {[%emt 0:00:30]} 11. Be3 {[%emt 0:00:30]} h6 {[%emt 0:04:30]} 12. Nd2 {[%emt 0:03:30]} Nd4 {[%emt 0:05:30]} 13. Nc4 {[%emt 0:05:30]} Qe6 {[%emt 0:00:30]} 14. Rb1 {[%emt 0:02:30]} Rb8 {[%emt 0:02:30]} 15. b4 {[%emt 0:00:30]} cxb4 {[%emt 0:00:30]} 16. axb4 {[%emt 0:00:30]} b5 {[%emt 0:00:30]} 17. Nd2 {[%emt 0:03:30]} Bb7 {[%emt 0:01:30]} 18. Bxb7 {[%emt 0:04:30]} Rxb7 {[%emt 0:00:30]} 19. Bxd4 {[%emt 0:00:00]} exd4 {[%emt 0:00:30]} 20. Nf3 {[%emt 0:00:00]} Bf6 {[%emt 0:01:30]} 21. Qd2 {[%emt 0:03:30]} Re8 {[%emt 0:02:30]} 22. Rb2 {[%emt 0:00:30]} Rbe7 {[%emt 0:00:30]} 23. Re1 {[%emt 0:01:30]} g5 {[%emt 0:03:30]} 24. Qd1 {[%emt 0:06:30]} Qf5 {[%emt 0:01:30]} 25. Kg2 {[%emt 0:02:30]} Qd5 {[%emt 0:01:30]} 26. h3 {[%emt 0:07:30]} h5 {[%emt 0:02:30]} 27. Kh2 {[%emt 0:00:30]} g4 {[%emt 0:14:30]} 28. Ng1 {[%emt 0:04:30]} Qf5 {[%emt 0:01:30]} 29. Rf1 {[%emt 0:01:30]} h4 {[%emt 0:03:30]} 30. hxg4 {[%emt 0:03:30]} Qxg4 {[%emt 0:00:30]} 31. e4 {[%emt 0:00:00]} hxg3+ {[%emt 0:03:30]} 32. fxg3 {[%emt 0:01:00]} Qg6 {[%emt 0:01:30]} 33. Rf5 {[%emt 0:07:30]} Be5 {[%emt 0:01:30]} 34. Qf3 {[%emt 0:11:30]} f6 {[%emt 0:01:30]} 35. Rh5 {[%emt 0:07:01]} Rg7 {[%emt 0:03:30]} 36. Ne2 {[%emt 0:02:37]} Rc8 {[%emt 0:04:30]} 37. Rh3 {[%emt 0:05:19]} Rf8 {[%emt 0:06:30]} 38. Nf4 {[%emt 0:00:56]} Bxf4 {[%emt 0:00:30]} 39. Qxf4 {[%emt 0:00:02]} f5 {[%emt 0:05:30]} 40. Rf2 {[%emt 0:00:22]} Rgf7 {[%emt 0:02:43]} 41. Qh4 {[%emt 0:00:50]} Qg7 {[%emt 0:01:38]} 42. exf5 {[%emt 0:02:06]} Rxf5 {[%emt 0:01:05]} 43. Rxf5 {[%emt 0:00:02]} Rxf5 {[%emt 0:00:19]} 44. Qd8+ {[%emt 0:00:03]} Qf8 {[%emt 0:01:18]} 45. Qxf8+ {[%emt 0:00:42]} Kxf8 {[%emt 0:00:18]} 46. Rh4 {[%emt 0:00:21]} Rd5 {[%emt 0:01:40]} 47. Kg2 {[%emt 0:00:31]} Kg7 {[%emt 0:01:17]} 48. Kf3 {[%emt 0:01:28]} a6 {[%emt 0:02:28]} 49. Rf4 {[%emt 0:01:14]} Kg6 {[%emt 0:01:00]} 50. Ke4 {[%emt 0:00:18]} Rd7 {[%emt 0:00:22]} 51. Ke5 {[%emt 0:00:21]} a5 {[%emt 0:00:22]} 52. bxa5 {[%emt 0:00:20]} Ra7 {[%emt 0:00:25]} 53. Kxd4 {[%emt 0:03:00]} Rxa5 {[%emt 0:00:37]} 54. Kc5 {[%emt 0:00:03]} Ra3 {[%emt 0:00:06]} 55. d4 {[%emt 0:00:46]} Rxg3 {[%emt 0:00:53]} 56. Kxb5 {[%emt 0:00:02]} Rc3 {[%emt 0:00:08]} 57. d5 {[%emt 0:00:33]} Kg5 {[%emt 0:00:30]} 58. Rf1 {[%emt 0:00:00]} Rc2 {[%emt 0:00:33]} 59. d6 {[%emt 0:00:02]} Rd2 {[%emt 0:00:00]} 60. Kc6 {[%emt 0:00:34]} Rc2+ {[%emt 0:00:12]} 61. Kd7 {[%emt 0:00:05]} Kg6 {[%emt 0:00:20]} 62. Kd8 {[%emt 0:00:00]} Rc3 {[%emt 0:00:09]} 63. d7 {[%emt 0:00:36]} Rc2 {[%emt 0:00:13]} 64. Rf4 {[%emt 0:00:16]} Rc1 {[%emt 0:00:23]} 65. Ke7 {[%emt 0:00:45]} Re1+ {[%emt 0:00:32]} 66. Kd6 {[%emt 0:00:05]} Rd1+ {[%emt 0:00:15]} 67. Ke6 {[%emt 0:00:04]} Re1+ {[%emt 0:00:18]} 68. Kd5 {[%emt 0:00:05]} Kg5 {[%emt 0:00:02]} 69. Rd4 {[%emt 0:00:07]} 1-0

[Event "Turkish Cup 2024"]
[Site "Denizli"]
[Date "2024.08.02"]
[Round "6"]
[White "Saricam, Ege"]
[Black "Bulgurlu, Okan"]
[Result "0-1"]
[ECO "B01"]
[WhiteElo "1794"]
[BlackElo "1964"]
[Annotator "ChessBase"]
[PlyCount "106"]
[EventDate "2024.08.01"]
[EventType "swiss"]
[EventCountry "TUR"]
[SourceTitle "playchess.com"]
[Source "ChessBase"]
[SourceQuality "1"]
[TimeControl "5400+30"]

1. e4 {[%emt 0:01:00]} d5 {[%emt 0:03:00]} 2. exd5 {[%emt 0:00:30]} Qxd5 {[%emt 0:00:30]} 3. Nc3 {[%emt 0:00:00]} Qd6 {[%emt 0:00:30]} 4. d4 {[%emt 0:00:00]} Nf6 {[%emt 0:00:00]} 5. Nf3 {[%emt 0:00:00]} a6 {[%emt 0:00:00]} 6. Be2 {[%emt 0:00:00]} b5 {[%emt 0:00:00]} 7. Ne5 {[%emt 0:00:30]} Bb7 {[%emt 0:06:00]} 8. Bf3 {[%emt 0:02:30]} c6 {[%emt 0:06:30]} 9. Bf4 {[%emt 0:04:30]} Qb4 {[%emt 0:00:30]} 10. Rb1 {[%emt 0:00:30]} e6 {[%emt 0:01:30]} 11. a3 {[%emt 0:01:30]} Qa5 {[%emt 0:00:30]} 12. b4 {[%emt 0:01:30]} Qb6 {[%emt 0:00:30]} 13. O-O {[%emt 0:00:30]} a5 {[%emt 0:06:30]} 14. bxa5 {[%emt 0:06:30]} Qa6 {[%emt 0:04:30]} 15. Nd3 {[%emt 0:06:30]} Bxa3 {[%emt 0:13:30]} 16. Ra1 {[%emt 0:04:30]} Be7 {[%emt 0:03:30]} 17. Bc7 {[%emt 0:02:30]} Nbd7 {[%emt 0:01:30]} 18. Na2 {[%emt 0:05:30]} Qa7 {[%emt 0:07:30]} 19. Nab4 {[%emt 0:23:30]} Rc8 {[%emt 0:01:30]} 20. Be5 {[%emt 0:04:30]} Nxe5 {[%emt 0:03:30]} 21. dxe5 {[%emt 0:00:00]} Nd5 {[%emt 0:00:30]} 22. Nxd5 {[%emt 0:00:00]} cxd5 {[%emt 0:00:00]} 23. Qd2 {[%emt 0:01:30]} O-O {[%emt 0:00:00]} 24. Rfb1 {[%emt 0:00:30]} Qd4 {[%emt 0:02:30]} 25. Ra2 {[%emt 0:01:30]} Ba6 {[%emt 0:00:30]} 26. Qe3 {[%emt 0:05:30]} Qxe3 {[%emt 0:01:30]} 27. fxe3 {[%emt 0:00:30]} Rc4 {[%emt 0:00:30]} 28. Kf2 {[%emt 0:01:30]} Rfc8 {[%emt 0:00:00]} 29. Ne1 {[%emt 0:02:30]} f6 {[%emt 0:05:00]} 30. Be2 {[%emt 0:01:30]} R4c5 {[%emt 0:01:30]} 31. Rab2 {[%emt 0:00:30]} Rb8 {[%emt 0:06:30]} 32. Nd3 {[%emt 0:01:30]} Rc3 {[%emt 0:00:00]} 33. Bg4 {[%emt 0:00:30]} Kf7 {[%emt 0:02:00]} 34. Ke1 {[%emt 0:01:30]} Ra3 {[%emt 0:04:30]} 35. exf6 {[%emt 0:03:46]} gxf6 {[%emt 0:00:30]} 36. Bh5+ {[%emt 0:00:36]} Kg7 {[%emt 0:01:30]} 37. Nf4 {[%emt 0:00:38]} Rxe3+ {[%emt 0:00:30]} 38. Kd2 {[%emt 0:00:34]} Re4 {[%emt 0:00:00]} 39. Re1 {[%emt 0:00:57]} Rxf4 {[%emt 0:01:00]} 40. Rxe6 {[%emt 0:00:06]} Ba3 {[%emt 0:07:35]} 41. Rb3 {[%emt 0:01:05]} Bc8 {[%emt 0:00:04]} 42. Rb6 {[%emt 0:01:30]} Rxb6 {[%emt 0:00:36]} 43. axb6 {[%emt 0:00:03]} Rd4+ {[%emt 0:02:19]} 44. Ke3 {[%emt 0:01:59]} Re4+ {[%emt 0:00:05]} 45. Kd2 {[%emt 0:00:43]} b4 {[%emt 0:00:10]} 46. c3 {[%emt 0:01:30]} bxc3+ {[%emt 0:00:24]} 47. Kd3 {[%emt 0:01:32]} Bb4 {[%emt 0:00:28]} 48. Bf3 {[%emt 0:00:05]} Bf5 {[%emt 0:05:59]} 49. Bxe4 {[%emt 0:01:19]} Bxe4+ {[%emt 0:00:04]} 50. Kd4 {[%emt 0:01:53]} c2 {[%emt 0:00:30]} 51. Rxb4 {[%emt 0:00:00]} c1=Q {[%emt 0:00:16]} 52. b7 {[%emt 0:00:00]} Qg1+ {[%emt 0:00:17]} 53. Kc3 {[%emt 0:00:11]} d4+ {[%emt 0:00:00]} 0-1

[Event "Turkish Cup 2024"]
[Site "Denizli"]
[Date "2024.08.02"]
[Round "6"]
[White "Atayman, Evren"]
[Black "Celik, Ege Yigit"]
[Result "0-1"]
[ECO "B33"]
[WhiteElo "1785"]
[BlackElo "1949"]
[Annotator "ChessBase"]
[PlyCount "82"]
[EventDate "2024.08.01"]
[EventType "swiss"]
[EventCountry "TUR"]
[SourceTitle "playchess.com"]
[Source "ChessBase"]
[SourceQuality "1"]
[TimeControl "5400+30"]

1. e4 {[%emt 0:01:00]} c5 {[%emt 0:01:00]} 2. Nf3 {[%emt 0:00:30]} Nc6 {[%emt 0:00:00]} 3. d4 {[%emt 0:00:30]} cxd4 {[%emt 0:00:00]} 4. Nxd4 {[%emt 0:00:30]} Qb6 {[%emt 0:00:30]} 5. Nb3 {[%emt 0:00:30]} Nf6 {[%emt 0:00:00]} 6. Nc3 {[%emt 0:01:30]} e6 {[%emt 0:01:00]} 7. Be3 {[%emt 0:00:30]} Qc7 {[%emt 0:00:00]} 8. a3 {[%emt 0:00:00]} a6 {[%emt 0:00:00]} 9. f4 {[%emt 0:00:00]} d6 {[%emt 0:00:30]} 10. g4 {[%emt 0:01:30]} Be7 {[%emt 0:02:30]} 11. Bg2 {[%emt 0:05:30]} b5 {[%emt 0:00:30]} 12. h4 {[%emt 0:03:30]} Bb7 {[%emt 0:02:30]} 13. g5 {[%emt 0:00:30]} Nd7 {[%emt 0:00:00]} 14. Qe2 {[%emt 0:00:30]} Rc8 {[%emt 0:13:00]} 15. h5 {[%emt 0:12:30]} b4 {[%emt 0:02:30]} 16. axb4 {[%emt 0:10:30]} Nxb4 {[%emt 0:00:30]} 17. O-O-O {[%emt 0:02:30]} Nb6 {[%emt 0:16:30]} 18. Kb1 {[%emt 0:06:30]} Nc4 {[%emt 0:01:30]} 19. Bc1 {[%emt 0:01:30]} O-O {[%emt 0:08:30]} 20. g6 {[%emt 0:01:30]} Bf6 {[%emt 0:00:30]} 21. gxh7+ {[%emt 0:02:30]} Kh8 {[%emt 0:06:30]} 22. h6 {[%emt 0:09:30]} g6 {[%emt 0:03:30]} 23. f5 {[%emt 0:05:30]} Kxh7 {[%emt 0:02:30]} 24. fxg6+ {[%emt 0:01:30]} fxg6 {[%emt 0:00:00]} 25. e5 {[%emt 0:02:30]} Bxe5 {[%emt 0:05:00]} 26. Bxb7 {[%emt 0:00:30]} Qxb7 {[%emt 0:00:30]} 27. Ne4 {[%emt 0:01:30]} Rf5 {[%emt 0:15:44]} 28. Nec5 {[%emt 0:04:30]} Qb5 {[%emt 0:03:12]} 29. Nd3 {[%emt 0:04:30]} Nxc2 {[%emt 0:01:18]} 30. Nbc5 {[%emt 0:10:29]} Rxc5 {[%emt 0:00:37]} 31. Qg2 {[%emt 0:01:18]} N4a3+ {[%emt 0:02:16]} 32. Ka2 {[%emt 0:00:21]} Nb4+ {[%emt 0:04:40]} 33. Nxb4 {[%emt 0:00:30]} Qxb4 {[%emt 0:00:30]} 34. Rhg1 {[%emt 0:00:46]} g5 {[%emt 0:01:43]} 35. Rgf1 {[%emt 0:03:58]} Nc2 {[%emt 0:01:55]} 36. Kb1 {[%emt 0:04:54]} Qa5 {[%emt 0:01:40]} 37. Qxc2 {[%emt 0:02:39]} Rxc2 {[%emt 0:00:08]} 38. Kxc2 {[%emt 0:00:14]} Qa4+ {[%emt 0:00:10]} 39. Kb1 {[%emt 0:00:11]} Qe4+ {[%emt 0:00:30]} 40. Ka1 {[%emt 0:00:00]} Bf4 {[%emt 0:00:00]} 41. Rfe1 {[%emt 0:00:10]} Ra5# {[%emt 0:00:00]} 0-1

[Event "Turkish Cup 2024"]
[Site "Denizli"]
[Date "2024.08.02"]
[Round "6"]
[White "Tufan, Kerem"]
[Black "Tutuncu, Ali"]
[Result "0-1"]
[ECO "B06"]
[WhiteElo "1783"]
[BlackElo "2041"]
[Annotator "ChessBase"]
[PlyCount "70"]
[EventDate "2024.08.01"]
[EventType "swiss"]
[EventCountry "TUR"]
[SourceTitle "playchess.com"]
[Source "ChessBase"]
[SourceQuality "1"]
[TimeControl "5400+30"]

1. e4 {[%emt 0:01:00]} g6 {[%emt 0:01:00]} 2. d4 {[%emt 0:00:00]} Bg7 {[%emt 0:00:30]} 3. Nc3 {[%emt 0:00:00]} d6 {[%emt 0:00:00]} 4. Be3 {[%emt 0:00:30]} a6 {[%emt 0:00:00]} 5. Qd2 {[%emt 0:01:30]} b5 {[%emt 0:00:00]} 6. h4 {[%emt 0:03:30]} h6 {[%emt 0:00:00]} 7. h5 {[%emt 0:07:30]} g5 {[%emt 0:00:00]} 8. Nge2 {[%emt 0:06:30]} e6 {[%emt 0:02:00]} 9. Ng3 {[%emt 0:10:30]} Ne7 {[%emt 0:00:00]} 10. Bd3 {[%emt 0:08:30]} Nd7 {[%emt 0:03:00]} 11. Nce2 {[%emt 0:00:30]} Bb7 {[%emt 0:02:30]} 12. a4 {[%emt 0:08:30]} bxa4 {[%emt 0:03:30]} 13. Rxa4 {[%emt 0:00:30]} c5 {[%emt 0:00:30]} 14. c3 {[%emt 0:03:30]} cxd4 {[%emt 0:06:30]} 15. cxd4 {[%emt 0:05:30]} Nb6 {[%emt 0:01:30]} 16. Ra3 {[%emt 0:02:30]} d5 {[%emt 0:01:30]} 17. exd5 {[%emt 0:16:30]} Nexd5 {[%emt 0:01:30]} 18. O-O {[%emt 0:03:02]} O-O {[%emt 0:01:30]} 19. f4 {[%emt 0:05:18]} gxf4 {[%emt 0:25:30]} 20. Bxf4 {[%emt 0:00:27]} Nxf4 {[%emt 0:00:30]} 21. Qxf4 {[%emt 0:02:43]} f5 {[%emt 0:00:00]} 22. Bb1 {[%emt 0:11:52]} Qd5 {[%emt 0:02:00]} 23. Qf2 {[%emt 0:01:02]} Nc4 {[%emt 0:00:30]} 24. Ba2 {[%emt 0:01:01]} f4 {[%emt 0:00:30]} 25. Ne4 {[%emt 0:00:00]} Qxe4 {[%emt 0:06:30]} 26. Bxc4 {[%emt 0:00:36]} Rad8 {[%emt 0:00:30]} 27. Qf3 {[%emt 0:00:25]} Bxd4+ {[%emt 0:01:30]} 28. Kh1 {[%emt 0:00:25]} Qxf3 {[%emt 0:23:09]} 29. Bxe6+ {[%emt 0:00:18]} Kh8 {[%emt 0:00:37]} 30. gxf3 {[%emt 0:00:05]} Be3 {[%emt 0:00:00]} 31. Bc4 {[%emt 0:01:15]} Rf5 {[%emt 0:00:10]} 32. Raa1 {[%emt 0:00:30]} Rxh5+ {[%emt 0:00:30]} 33. Kg2 {[%emt 0:00:30]} Rd7 {[%emt 0:00:30]} 34. Nxf4 {[%emt 0:00:30]} Rg7+ {[%emt 0:00:30]} 35. Ng6+ {[%emt 0:00:30]} Rxg6# {[%emt 0:00:30]} 0-1